Cogmind - Beta 12 @@@ ROGUE MODE // 2023.05.30 @ 18:03:59 Player: Michael Result: Destroyed by as-82348 with Assembled Rifle Performance ------------- Evolutions (0) 0 Regions Visited (2) 400 Robots Destroyed (25) 125 Value Destroyed (469) 469 Prototype IDs (0) 0 Alien Tech Used (0) 0 Bonus (8) 8 TOTAL SCORE: 1002 Bonus ------- High Alert Combat Kills 8 Cogmind --------- Core Integrity 0/250 Matter 241/300 Energy 146/160 System Corruption 5% Temperature Cool (0) Movement Rolling (140) Ox4 Location -10/Mines Parts ------- > --- POWER (1) -------- Light Nuclear Core > --- PROPULSION (2) --- Light Treads Wheel > --- UTILITY (2) ------ Heat Sink High-capacity Storage Unit > --- WEAPON (2) ------- Assault Rifle Light Assault Rifle > --- INVENTORY (20) --- Light Treads Light Treads Wheel Medium Storage Unit Large Storage Unit Large Matter Pod (150) Terrain Scanner Transport Network Coupler Weapon Shielding Hacking Suite Grenade Launcher Peak State ------------ > --- POWER ------------ Light Nuclear Core > --- PROPULSION ------- Light Treads Wheel > --- UTILITY ---------- Heat Sink High-capacity Storage Unit > --- WEAPON ----------- Beam Cannon Light Assault Rifle > --- INVENTORY -------- Light Treads Light Treads Wheel Medium Storage Unit Large Storage Unit Large Matter Pod Terrain Scanner Transport Network Coupler Weapon Shielding Hacking Suite Assault Rifle Grenade Launcher [Rating: 10] Favorites ----------- Power Ion Engine Engine Ion Engine Power Core Light Nuclear Core Propulsion Wheel Treads Light Treads Wheel Wheel Utility High-capacity Storage Unit Device Heat Sink Storage High-capacity Storage Unit Processor Targeting Computer Protection Weapon Shielding Weapon Light Assault Rifle Energy Cannon Beam Cannon Ballistic Gun Light Assault Rifle Launcher Grenade Launcher Build | -11 -10 -10 ------- Run | Jun Mat Min Slots Evolved . | . . . Power . | . . . Propulsion . | . . . Utility . | . . . Weapon . | . . . Parts Attached 39 | 5 25 9 Power 4 | 1 2 1 Engine 3 | 1 2 . Core 1 | . . 1 Reactor . | . . . Propulsion 7 | 2 3 2 Treads 2 | . 2 . Leg . | . . . Wheel 5 | 2 1 2 Hover . | . . . Flight . | . . . Utility 8 | 1 6 1 Device 3 | . 2 1 Storage 3 | 1 2 . Processor 1 | . 1 . Hackware . | . . . Protection 1 | . 1 . Artifact . | . . . Weapon 20 | 1 14 5 Energy Gun . | . . . Energy Cannon 2 | . 1 1 Ballistic Gun 13 | 1 8 4 Ballistic Cannon . | . . . Launcher 5 | . 5 . Special Weapon . | . . . Impact Weapon . | . . . Slashing Weapon . | . . . Piercing Weapon . | . . . Special Melee Weapon . | . . . Unidentified Prototypes . | . . . Parts Lost 5 | . . 5 Power 1 | . . 1 Propulsion 1 | . . 1 Utility 1 | . . 1 Weapon 2 | . . 2 Highest Loss Streak 3 | . . 3 To Critical Strikes . | . . . Average Slot Usage (%) 95 | . 94 95 Engine 13 | . 14 12 Treads 13 | . 13 14 Wheel 13 | . 14 11 Device 8 | . 9 7 Storage 14 | . 14 14 Processor 2 | . . 7 Protection 1 | . 1 . Energy Cannon 10 | . 9 12 Ballistic Gun 15 | . 15 14 Naked Turns . | . . . Heaviest Build 51 | 11 51 50 Greatest Support 20 | 20 20 10 Greatest Overweight (x) 5 | . 5 4 Average Overweight (x) 2 | . 2 4 Largest Inventory Capacity 20 | 8 20 20 Average Capacity 14 | 6 12 20 Most Carried 18 | 4 18 17 Average Carried 11 | 2 9 15 Final Capacity 20 | 8 20 20 Final Carried 17 | 4 17 11 Class Distribution -------------------- 90% | Mutant 9% | Scavenger-Mutant Dominant Class ---------------- Mutant | -10/Materials Mutant | -10/Mines Resources | -11 -10 -10 ----------- Run | Jun Mat Min Matter Collected 937 | 225 616 96 Remotely . | . . . Salvage Created 793 | . 620 173 Parts 45 | . 42 3 Haulers Intercepted 1 | . 1 . Recyclers Shooed 2 | . 2 . Parts Field Recycled . | . . . Retrieved Matter . | . . . Parts Self-Destructed . | . . . Prevented . | . . . Kills | -11 -10 -10 ------- Run | Jun Mat Min Combat Hostiles Destroyed 21 | . 12 9 Guns 6 | . 3 3 Cannons 6 | . . 6 AOE 9 | . 9 . Classes Destroyed 10 | . 8 2 Worker 3 | . 3 . Builder 1 | . 1 . Hauler 1 | . 1 . Recycler 3 | . 2 1 Operator 1 | . 1 . Watcher 2 | . 2 . Swarmer 6 | . 6 . Grunt 6 | . 6 . Demolisher 2 | . . 2 Assembled 7 | . . 7 Best Kill Streak 4 | . 4 4 Combat Bots Only 4 | . 3 4 Max Kills in Single Turn 2 | . 2 1 Gunslinging . | . . . Exploded 2 | . 2 . Melee . | . . . Uniques/NPCs Destroyed . | . . . Combat | -11 -10 -10 -------- Run | Jun Mat Min Damage Taken 996 | . 265 731 Core 255 | . 49 206 Absorbed by Shields . | . . . Redirected to Shielding 5 | . 5 . Core Remaining (%) 100 | 100 . . Volleys Fired 74 | . 38 36 Largest 2 | . 2 2 Hottest 80 | . 80 80 Shots Fired 130 | . 60 70 Gun 80 | . 35 45 Cannon 37 | . 12 25 Launcher 13 | . 13 . Special . | . . . Kinetic 80 | . 35 45 Thermal 37 | . 12 25 Explosive 13 | . 13 . Electromagnetic . | . . . Robot Hit Streak 20 | . 10 20 Robot Miss Streak 3 | . 3 3 Penetration Max . | . . . Secondary Targets 1 | . 1 . Max Gunslinging Chain 1 | . 1 . Shots Hit Robots 84 | . 37 47 Core Hits 50 | . 33 17 Critical Kills . | . . . Critical Parts Destroyed . | . . . Critical Strikes . | . . . Melee Attacks . | . . . Impact . | . . . Slashing . | . . . Piercing . | . . . Sneak Attacks . | . . . Combat Hostiles . | . . . Follow-up Attacks . | . . . Damage Inflicted 1582 | . 992 590 Guns 453 | . 231 222 Cannons 545 | . 177 368 Explosions 584 | . 584 . Melee . | . . . Ramming . | . . . Kinetic 453 | . 231 222 Thermal 545 | . 177 368 Explosive 584 | . 584 . Electromagnetic . | . . . Impact . | . . . Slashing . | . . . Piercing . | . . . Highest Corruption 5 | . 1 5 Average Corruption 1 | . 1 3 Corruption Purged . | . . . Corruption Blocked . | . . . Effects 15 | . 6 9 Message Errors 1 | . . 1 Matter Fused 7 | . 3 4 Heat Flow Errors 1 | . 1 . Energy Discharges 1 | . . 1 Parts Rejected 1 | . . 1 Data Loss (minor) 2 | . 2 . Misfires 2 | . . 2 Overload Shots . | . . . Overflow Damage 15 | . 15 . Projectiles 3 | . 3 . Explosions 12 | . 12 . Melee . | . . . Knockbacks . | . . . Impact . | . . . Kinetic . | . . . Secondary . | . . . Self-Inflicted Damage 51 | . 51 . Shots 2 | . 2 . Rammed . | . . . Targets Rammed . | . . . Kicked . | . . . Crushed . | . . . Highest Temperature 89 | . 89 40 Average Temperature 18 | . 20 17 Received Heat Transfer 75 | . 75 . Siege Activations . | . . . Robots Corrupted . | . . . Combat Hostiles . | . . . Parts Fried . | . . . Impact Corruptions . | . . . Robots Melted . | . . . Combat Hostiles . | . . . Parts Melted . | . . . Heat Transferred 1147 | . 370 777 Parts Sabotaged . | . . . Parts Stolen . | . . . Parts Stripped . | . . . Power Chain Reactions . | . . . Missiles Intercepted . | . . . Alert | -11 -10 -10 ------- Run | Jun Mat Min Peak Influence 405 | . 405 70 Initial 70 | . . 70 Average 174 | . 235 33 Maximum Alert Level 2 | . 2 . Low Security (%) 53 | 100 34 100 Level 1 36 | . 52 . Level 2 9 | . 13 . Level 3 . | . . . Level 4 . | . . . Level 5 . | . . . High Security . | . . . Max Security . | . . . Squads Dispatched 1 | . 1 . Investigation . | . . . Extermination . | . . . Reinforcement 1 | . 1 . Assault . | . . . Garrison . | . . . Intercept . | . . . Searches Triggered . | . . . Construction Impeded . | . . . Haulers Reinforced . | . . . Active Scanning Responses . | . . . Cargo Convoy Interrupts . | . . . Stealth | -11 -10 -10 --------- Run | Jun Mat Min Distress Signals 2 | . 1 1 Communications Jammed . | . . . Distress Signals . | . . . Times Spotted 35 | . 20 15 Peak Tracking Total 8 | . 4 8 Tactical Retreats 1 | . 1 . Traps | -11 -10 -10 ------- Run | Jun Mat Min Traps Triggered 1 | . 1 . Indirectly . | . . . Trap Hack Attempts . | . . . Triggered . | . . . Disarmed . | . . . Reprogrammed . | . . . Reused . | . . . Traps Extracted . | . . . Installed . | . . . Triggered . | . . . Machines | -11 -10 -10 ---------- Run | Jun Mat Min Machines Disabled 1 | . 1 . Max in Single Turn 1 | . 1 . Machines Repaired . | . . . Machines Sabotaged . | . . . Overloaded Fab Kills . | . . . Hacking | -11 -10 -10 --------- Run | Jun Mat Min Machines Accessed 7 | . 7 . Terminals 5 | . 5 . Fabricators . | . . . Repair Stations . | . . . Recycling Units 2 | . 2 . Scanalyzers . | . . . Garrison Access . | . . . Total Hacks 11 | . 11 . Successful 5 | . 5 . Failed 6 | . 6 . Catastrophic 2 | . 2 . Database Lockouts . | . . . Manual 3 | . 3 . Terminals 9 | . 9 . Fabricators . | . . . Repair Stations . | . . . Recycling Units 2 | . 2 . Scanalyzers . | . . . Garrison Access . | . . . Terminal Hacks 5 | . 5 . Branch Access Points 1 | . 1 . Emergency Access Points 1 | . 1 . Terminal Index 1 | . 1 . Registered Components 1 | . 1 . Zone Layout 1 | . 1 . Fabricator Hacks . | . . . Repair Station Hacks . | . . . Recycling Unit Hacks . | . . . Scanalyzer . | . . . Garrison Access Hacks . | . . . Unauthorized Hacks . | . . . Terminals . | . . . Fabricators . | . . . Repair Stations . | . . . Recycling Units . | . . . Scanalyzers . | . . . Garrison Access . | . . . Data Cores Recovered 1 | . 1 . Used . | . . . Hacking Detections 5 | . 5 . Full Trace Events . | . . . Feedback Events . | . . . Feedback Blocked . | . . . Robot Schematics Acquired . | . . . Robots Built . | . . . Authchips . | . . . Time . | . . . Total Robot Build Rating . | . . . Part Schematics Acquired . | . . . Parts Built . | . . . Authchips . | . . . Time . | . . . Total Part Build Rating . | . . . Parts Repaired . | . . . Time . | . . . Parts Recycled . | . . . Recycled Matter . | . . . Retrieved Matter . | . . . Retrieved Components . | . . . Parts Scanalyzed . | . . . Part Schematics Acquired . | . . . Parts Damaged . | . . . Bothacking | -11 -10 -10 ------------ Run | Jun Mat Min Used RIF Installer . | . . . Robots Hacked . | . . . Non-combat . | . . . Combat . | . . . Robot Hacks Applied . | . . . Relay Couplers Released . | . . . Fabnet Peak Effective % . | . . . Robots Rewired . | . . . Allies Hacked . | . . . Hacks Repelled . | . . . Allies | -11 -10 -10 -------- Run | Jun Mat Min Total Allies 3 | . . 3 Largest Group 3 | . . 3 Highest-Rated Group 40 | . . 40 Highest-Rated Ally 16 | . . 16 Total Orders . | . . . Ally Attacks 5 | . . 5 Total Damage 12 | . . 12 Kills . | . . . Allies Corrupted . | . . . Allies Melted . | . . . Intel | -11 -10 -10 ------- Run | Jun Mat Min Robot Analysis Total . | . . . Derelict Logs Recovered . | . . . Drone Launches . | . . . Drone Recoveries . | . . . Exploration | -11 -10 -10 ------------- Run | Jun Mat Min Turns Passed 1315 | 49 925 341 Spaces Moved 906 | 49 692 165 Core 7 | 7 . . Treads . | . . . Legs . | . . . Wheels 899 | 42 692 165 Hover . | . . . Flight . | . . . Fastest Speed 50 | 50 80 140 Average Speed 113 | 75 110 140 Slowest Speed 155 | 80 155 140 Overloaded Moves . | . . . Propulsion Burnouts . | . . . Robots Hopped . | . . . Cave-ins Triggered . | . . . Exploration Rate (%) 50 | 4 96 51 Regions Visited 2 Branch Regions 1 Pre-discovered Areas . | . . . Known Exits Taken 1 | . 1 . Unknown Exits Taken 1 | 1 . . Scrap Searched . | . . . Spaces Dug 12 | . 12 . Terrain Destroyed 80 | . 80 . Melee . | . . . Projectile . | . . . AOE 80 | . 80 . Terrain Rammed . | . . . Walls Destroyed . | . . . Machines Disabled . | . . . Actions | -11 -10 -10 --------- Run | Jun Mat Min Total 1070 | 58 797 215 Wait 22 | . 18 4 Move 904 | 48 691 165 Hop . | . . . Pick Up 15 | 5 10 . Fast Attach 10 | 4 6 . Attach 9 | 1 1 7 Detach 6 | . 5 1 Swap 20 | . 18 2 Drop 10 | . 10 . Fire 74 | . 38 36 Melee . | . . . Ram . | . . . Kick . | . . . Crush . | . . . Escape Stasis . | . . . Rewire . | . . . Trap . | . . . Miscellaneous . | . . . Route ------- -11/Junkyard -10/Materials (discovered 5 exits: [*Mat x3] / *Min x2) -10/Mines (discovered 1 exit: [*Mat]) History --------- Turn | Location | Event 3 | -11/Junkyard | Discovered new exit (range 16) 50 | -11/Junkyard | Entered Materials 191 | -10/Materials | Discovered new exit (range 12) 306 | -10/Materials | Build established: Mutant 340 | -10/Materials | Discovered new exit (range 16) 341 | -10/Materials | Discovered new exit (range 16) 433 | -10/Materials | Discovered new exit (range 15) 536 | -10/Materials | Identified exit to Mines 661 | -10/Materials | Discovered new exit (range 8) 975 | -10/Materials | Entered Mines 1054 | -10/Mines | Assisted by bots powering up and referring to "LRC-V3" 1075 | -10/Mines | Discovered new exit (range 6) 1098 | -10/Mines | Assembled infested the area 1280 | -10/Mines | Core integrity fell below 50% 1282 | -10/Mines | Core integrity fell below 20% 1316 | -10/Mines | Destroyed by as-82348 with Assembled Rifle Last Messages --------------- 01274_ U-05 Engineer lays Concrete. 01275_ U-05 Engineer builds a Wall. 01278_ Ion Engine destroyed. 01279_ U-05 Engineer lays Concrete. 01280_ Lgt. Assault Rifle destroyed. 01280_ U-05 Engineer lays Concrete. 01281_ D-53 Grenadier destroyed. 01281_ U-05 Engineer lays Concrete. 01282_ U-05 Engineer builds a Wall. 01285_ U-05 Engineer destroyed. 01286_ The unstable cave ceiling collapses. 01286_ R-06 Scavenger destroyed. 01287_ The unstable cave ceiling collapses. 01288_ Com. Wheel crushed. 01289_ The unstable cave ceiling collapses. 01298_ D-53 Grenadier destroyed. 01301_ The unstable cave ceiling collapses. 01302_ System corrupted: Energy discharge (-23). 01305_ Beam Cannon destroyed. 01306_ The unstable cave ceiling collapses. Map ----- +----------------------------------------------------+ | ????????????????????????????????????????????? | | ????????????????????????????????????????????? | | ????????????????????????????????????????????? | | ????????????????????????????????????????????? | | ????????????????????????????????????????????? | | ??????????????????##????????????????????????? | | ??????????????????# ???????????????????????? | | ??????????????????? ???????????????????????? | | ???????????????????#=!??????????????????????? | | ??????????????????##%!#?????????????????????? | | ?????????????????## =| #????????####????????? | | ??????????????#### #???????# ##???????# | | ???????????? | *%= ???????# ##?????## | | ?????????? [ ! #?????## ####### | | ????????? # " ###### | | ????????? # *%[ | | ????????? ! # ??????## ! | | ?????????? #!! ??????## ####### # | | ????????#??#%* # ???????# ##?????#### ##### | | ????????# ##!= ##?????# #?????????####???? | | ?????????? %% ####?# #????????????????? | | ???????????# ### #????????????????? | | ???????????# # ! ## # ## #????????????????? | | ????????????# a%*# # #????????????????? | | ????????????# ! # # ## #????????????????? | | ???????????## @ #????????????????? | | ??????????## # # ###? ??????????????? | | ??????????# ## #??? ??????????????? | | ??????????# % ##?? ??????????????? | | ????????# # ## ## ?? ???????????????? | | ??????# #### ##### # ##? ?? ???????????????? | | ??????# #???##?##?? ## ???????????????? | | ??????## % #?????????? #???????????????? | | ???????# ### #??????###?# #???????????????? | | ??????? ?? ??????# ? #?????????###???? | | ?????????? ? ??????# #?# #????????? #???? | | ?????????? ? ??????# ### #####?????# #???? | | ?????????#?? ?????## # # #???### #???# | | ???????????? ###### # #??## ##### | | ???????????? * # #?## | | ??????????? ### | | ???????????# ### | | ???????????### #?## ## | | ?????????????? ##### #### | | ??????????????## #?## ## ##??# | | ???????????????# #?## ######???# | | ??????????????# #??## #????????## | | ?????????????# < #???###### ##?????????# | | ????????????# #????????####??????????? | | ????????????## #??????????????????????? | +----------------------------------------------------+ Best States ------------- Heat Dissipation 35 Energy Generation 14 Energy Capacity 250 Matter Stores 300 Matter Capacity 300 Sight Range 16 Terrain Scan Range 14 Terrain Scan Density 10 Weapon Shielding 33 Evasion (%) 44 Targeting Accuracy 5 Recoil Reduction 1 Item Schematics ----------------- None Robot Schematics ------------------ None Fabricated ------------ Nothing Alien Tech Used ----------------- None Achievements -------------- None Challenges ------------ None Game ------ Seed BeamWeightRailgun Manual? 0 Play Time 00:17:06 Cumulative 761.6 hours Start 2023.05.29 @ 22:30:21 End 2023.05.30 @ 18:03:59 Sessions 2 Manual Loads 0 Difficulty Rogue Special Mode None Game No. 223 Rogue 187 Adventurer 36 Explorer 0 Win Type - Total 16 Types 16/0/0/0/0/0/0/0/0 Lore% 56 Gallery% 63 Achievement% 50 Wizard Run 0 Options --------- ASCII 0 Keyboard 1 Movement Vi Keybinds 0 Fullscreen 1 Font 18/Terminus Map View 76x50 Tactical HUD 1 Map Filters NONE Filters NONE Steam 0 RUN: f5d8dcc5-b668-4ed0-a9a8-84f1f9a0befc